[Event "FIDE WCCC G12 2018"]
[Site "Santiago de Compostela"]
[Date "2018.11.07"]
[Round "3"]
[White "Zduniewicz, Natalia"]
[Black "Savitha Shri B"]
[Result "0-1"]
[ECO "B00"]
[WhiteElo "1313"]
[BlackElo "1745"]
[Annotator "NA RC"]
[PlyCount "88"]
[EventDate "2018.11.04"]
[EventType "swiss"]
[EventCountry "ESP"]
[SourceTitle "playchess.com"]
[Source "ChessBase"]
[SourceQuality "1"]
[TimeControl "40/5400+30:1800+30"]

1. e4 {[%emt 0:00:00]} b6 {[%emt 0:00:00]} 2. d4 {[%emt 0:00:00]} Bb7 {[%emt 0:00:00]} 3. Nc3 {[%emt 0:00:00]} e6 {[%emt 0:00:00]} 4. Bd3 {[%emt 0:00:17]} d5 {[%emt 0:00:51]} 5. e5 {[%emt 0:02:06]} c5 {[%emt 0:00:11]} 6. Nf3 {[%emt 0:02:18]} Nc6 {[%emt 0:02:07]} 7. Be3 {[%emt 0:01:26]} a6 {[%emt 0:04:54]} 8. b3 {[%emt 0:04:44]} cxd4 {[%emt 0:01:36]} 9. Nxd4 {[%emt 0:04:51]} Bb4 {[%emt 0:00:23]} 10. Qd2 {[%emt 0:00:42]} Nxe5 {[%emt 0:01:50]} 11. a3 {[%emt 0:00:45]} Nxd3+ {[%emt 0:01:44]} 12. Qxd3 {[%emt 0:00:34]} Bxc3+ {[%emt 0:00:08]} 13. Qxc3 {[%emt 0:01:25]} Nf6 {[%emt 0:00:21]} 14. f3 {[%emt 0:03:31]} O-O {[%emt 0:02:56]} 15. Ne2 {[%emt 0:01:45]} Rc8 {[%emt 0:01:31]} 16. Qb2 {[%emt 0:00:53]} e5 {[%emt 0:00:11]} 17. c3 {[%emt 0:04:28]} Re8 {[%emt 0:04:19]} 18. h3 {[%emt 0:04:23]} d4 {[%emt 0:01:45]} 19. cxd4 {[%emt 0:02:35]} Nd5 {[%emt 0:00:15]} 20. Bd2 {[%emt 0:02:11]} exd4 {[%emt 0:02:01]} 21. Qxd4 {[%emt 0:06:59]} Qe7 {[%emt 0:00:37]} 22. Qf2 {[%emt 0:00:59]} Nc3 {[%emt 0:03:20]} 23. Bxc3 {[%emt 0:01:50]} Rxc3 {[%emt 0:00:12]} 24. Rd1 {[%emt 0:08:44]} Re3 {[%emt 0:00:41]} 25. Rd2 {[%emt 0:01:11]} a5 {[%emt 0:00:06]} 26. a4 {[%emt 0:08:02]} Ba6 {[%emt 0:00:34]} 27. O-O {[%emt 0:02:37]} Rxe2 {[%emt 0:00:41]} 28. Rxe2 {[%emt 0:01:05]} Qxe2 {[%emt 0:00:04]} 29. Qxe2 {[%emt 0:00:34]} Rxe2 {[%emt 0:00:06]} 30. Rd1 {[%emt 0:00:48]} g6 {[%emt 0:00:08]} 31. Rd8+ {[%emt 0:02:14]} Kg7 {[%emt 0:00:01]} 32. Rd6 {[%emt 0:01:07]} Re6 {[%emt 0:00:12]} 33. Rd1 {[%emt 0:01:19]} Re3 {[%emt 0:00:05]} 34. Rb1 {[%emt 0:00:10]} Rc3 {[%emt 0:00:06]} 35. b4 {[%emt 0:00:28]} Ra3 {[%emt 0:01:01]} 36. bxa5 {[%emt 0:00:49]} bxa5 {[%emt 0:00:40]} 37. Rb6 {[%emt 0:00:15]} Bc8 {[%emt 0:00:06]} 38. Kf2 {[%emt 0:00:58]} Rxa4 {[%emt 0:00:08]} 39. g4 {[%emt 0:00:27]} Ra2+ {[%emt 0:00:03]} 40. Ke3 {[%emt 0:00:00]} a4 {[%emt 0:00:00]} 41. Rb4 {[%emt 0:00:40]} a3 {[%emt 0:00:08]} 42. Ra4 {[%emt 0:00:12]} Ra1 {[%emt 0:00:07]} 43. Kf2 {[%emt 0:00:16]} a2 {[%emt 0:00:04]} 44. Ke2 {[%emt 0:00:34]} Rh1 {[%emt 0:00:06]} 0-1